fUST/lending_fUST_20260427
["ID","MTS","AMOUNT","RATE_DAILY","PERIOD"]
[421209260,1777255853418,-500.0,0.00019452,2]
[421209261,1777255853427,-4882.42,0.00019452,2]
[421209262,1777255853437,-16056.84,0.00019452,2]
[421209263,1777255853446,-554.71196995,0.00019473,2]
[421209264,1777255853455,-407.36703944,0.00019473,2]
[421209265,1777255853465,-500.0,0.00019473,2]
[421209266,1777255853474,-223.19730793,0.00019473,2]
[421209267,1777255853484,-573.41569951,0.00019473,2]
[421209268,1777255853493,-162.38407722,0.00019473,2]
[421209269,1777255853503,-500.0,0.00019473,2]
[421209270,1777255853512,-500.0,0.00019473,2]
[421209271,1777255853522,-500.0,0.00019473,2]
[421209272,1777255853532,-167.35994545,0.00019473,2]
[421209273,1777255853542,-169.59737526,0.00019473,2]
[421209274,1777255853552,-150.0,0.00019473,2]
[421209275,1777255853561,-150.0,0.00019473,2]
[421209276,1777255853570,-220.21831779,0.00019473,2]
[421209277,1777255853580,-500.0,0.00019473,2]
[421209278,1777255853590,-500.0,0.00019473,2]
[421209279,1777255853600,-500.0,0.00019473,2]
[421209280,1777255853611,-500.0,0.00019473,2]
[421209281,1777255853620,-500.0,0.00019473,2]
[421209282,1777255853630,-502.18270122,0.00019473,2]
[421209283,1777255853639,-500.51600944,0.00019473,2]
[421209284,1777255853649,-500.0,0.00019473,2]
[421209285,1777255853658,-500.0,0.00019473,2]
[421209286,1777255853668,-362.57552996,0.00019473,2]
[421209287,1777255853677,-500.0,0.00019473,2]
[421209288,1777255853687,-500.0,0.00019473,2]
[421209289,1777255853696,-213.29832654,0.00019473,2]
[421209290,1777255853705,-500.0,0.00019473,2]
[421209291,1777255853714,-500.0,0.00019473,2]
[421209292,1777255853723,-503.53304674,0.00019473,2]
[421209293,1777255853733,-500.0,0.00019473,2]
[421209294,1777255853742,-312.62951328,0.00019475,2]
[421209295,1777255853751,-387.55219778,0.00019488,2]
[421209296,1777255853761,-578.20924308,0.00019488,2]
[421209297,1777255853770,-2312.83697232,0.00019488,2]
[421209298,1777255853780,-308807.19618273,0.000195,2]
[421209299,1777255854002,-90563.64683269,0.000195,2]
[421209300,1777255854402,-534.56033897,0.00019178,2]
[421209301,1777255854412,-643.2862,0.00019178,2]
[421209302,1777255854422,-229.3101547,0.00019452,2]
[421209303,1777255854433,-305.25018426,0.00019452,2]
[421209304,1777255854442,-354.52481484,0.000195,2]
[421209317,1777256832092,-303.40654737,9.546e-05,2]
[421209318,1777256832114,-554.0,9.546e-05,2]
[421209319,1777256832136,-990.63145203,9.642e-05,2]
[421209320,1777256832161,-153.18,9.695e-05,7]
[421209321,1777256832185,-2428.51392149,9.739e-05,2]
[421209322,1777256837374,-1327.82942264,9.739e-05,2]
[421209323,1777256960133,-300.0,9.641e-05,2]
[421209324,1777256960158,-4706.65250043,9.642e-05,2]
[421209325,1777256960182,-555.0,9.642e-05,2]
[421209326,1777256960207,-150.0,9.738e-05,2]
[421209327,1777256960234,-300.0,9.834e-05,2]
[421209328,1777256960260,-300.0,9.834e-05,2]
[421209329,1777256960288,-300.0,9.834e-05,2]
[421209330,1777256960315,-300.0,9.834e-05,2]
[421209331,1777256960344,-300.0,9.834e-05,2]
[421209332,1777256960374,-300.0,9.834e-05,2]
[421209333,1777256960404,-300.0,9.834e-05,2]
[421209334,1777256960434,-300.0,9.834e-05,2]
[421209335,1777256960461,-182.57249482,9.834e-05,2]
[421209336,1777256960495,-117.42750518,9.834e-05,2]
[421209337,1777256960521,-300.0,9.834e-05,2]
[421209338,1777256960547,-300.0,9.834e-05,2]
[421209339,1777256960571,-300.0,9.834e-05,2]
[421209340,1777256960596,-300.0,9.834e-05,2]
[421209341,1777256960622,-300.0,9.834e-05,2]
[421209342,1777256960649,-300.0,9.834e-05,2]
[421209343,1777256960674,-600.0,0.0001003,2]
[421209344,1777256960696,-175.94,0.00010091,2]
[421209345,1777256960718,-175.34,0.00010091,2]
[421209346,1777256960744,-151.0,0.0001031,2]
[421209347,1777256960767,-234.59,0.00010325,2]
[421209348,1777256960789,-233.79,0.00010325,2]
[421209349,1777256960813,-1200.0,0.00010442,2]
[421209350,1777256960837,-160.28,0.00010443,2]
[421209351,1777256960859,-8847.6962435,0.00010443,2]
[421209377,1777257032030,-300.0,0.00010442,2]
[421209378,1777257032039,-300.0,0.00010442,2]
[421209379,1777257032049,-300.0,0.00010442,2]
[421209380,1777257032059,-25.33631496,0.00010442,2]
[421209381,1777257032071,-274.66368504,0.00010442,2]
[421209382,1777257032080,-1200.0,0.00010442,2]
[421209383,1777257032090,-566.0,0.00010443,2]
[421209384,1777257032099,-540.70070745,0.00010443,2]
[421209385,1777257032111,-1324.86809339,0.00010443,2]
[421209407,1777257038254,-580.46239662,0.00010443,2]
[421209408,1777257038525,-147.53660252,0.00010443,2]
[421209409,1777257038552,-19514.77356579,0.00010443,2]
[421209410,1777257038570,-19043.96239073,0.00010443,2]
[421209411,1777257038579,-293.24,0.0001056,2]
[421209412,1777257038589,-292.24,0.0001056,2]
[421209413,1777257038598,-300.0,0.00010651,2]
[421209414,1777257038607,-300.0,0.00010651,2]
[421209415,1777257038619,-300.0,0.00010651,2]
[421209416,1777257038628,-300.0,0.00010651,2]
[421209417,1777257038638,-300.0,0.00010651,2]
[421209418,1777257038647,-300.0,0.00010651,2]
[421209419,1777257038657,-300.0,0.00010651,2]
[421209420,1777257038665,-300.0,0.00010651,2]
[421209421,1777257038675,-300.0,0.00010651,2]
[421209422,1777257038684,-300.0,0.00010651,2]
[421209423,1777257038694,-300.0,0.00010651,2]
[421209424,1777257038703,-300.0,0.00010651,2]
[421209425,1777257038712,-300.0,0.00010651,2]
[421209426,1777257038722,-300.0,0.00010651,2]
[421209427,1777257038732,-300.0,0.00010651,2]
[421209428,1777257038741,-551.02339795,0.00010793,2]
[421209429,1777257038750,-526.6870743,0.00010793,2]
[421209430,1777257038760,-351.88,0.00010794,2]
[421209431,1777257038769,-350.68,0.00010794,2]
[421209432,1777257038779,-213.7,0.00010853,2]
[421209433,1777257038788,-600.0,0.00010863,2]
[421209434,1777257038798,-410.53,0.00011029,2]
[421209435,1777257038807,-409.13,0.00011029,2]
[421209436,1777257038816,-2237.4946242,0.00011097,2]
[421209437,1777257038826,-427.43,0.00011263,2]
[421209438,1777257038835,-408.0,0.00011481,2]
[421209439,1777257038845,-420.0,0.00011481,2]
[421209440,1777257038854,-420.0,0.00011481,2]
[421209441,1777257038864,-420.0,0.00011481,2]
[421209442,1777257038874,-1680.0,0.00011486,2]
[421209443,1777257038884,-177.0,0.00011738,2]
[421209444,1777257038896,-720.0,0.00011949,2]
[421209445,1777257038907,-2237.4946242,0.0001233,2]
[421209446,1777257038917,-587.0,0.00012624,2]
[421209447,1777257038927,-290.0,0.00012624,2]
[421209448,1777257038937,-1151.0,0.00012635,2]
[421209449,1777257038946,-463.94983289,0.000129,2]
[421209450,1777257038956,-463.94983286,0.000129,2]
[421209451,1777257038965,-864.0,0.00013144,2]
[421209452,1777257038975,-151.0,0.00013148,2]
[421209453,1777257038984,-151.0,0.00013148,2]
[421209454,1777257038995,-463.94983286,0.00013157,2]
[421209455,1777257039004,-250.33812543,0.00013342,2]
[421209456,1777257039014,-2237.4946242,0.00013562,2]
[421209457,1777257039023,-211.79678365,0.00013601,2]
[421209458,1777257039033,-1000.0,0.00013699,2]
[421209459,1777257039042,-152.0,0.00013701,7]
[421209460,1777257039052,-204.0,0.00013738,2]
[421209461,1777257039062,-10000.0,0.00013853,2]
[421209462,1777257039071,-578.0,0.0001388,2]
[421209463,1777257039081,-10000.0,0.00013953,2]
[421209464,1777257039091,-160.61629029,0.00013967,2]
[421209465,1777257039100,-10000.0,0.00014053,2]
[421209466,1777257039110,-10000.0,0.00014153,2]
[421209467,1777257039119,-1000.0,0.00014459,2]
[421209468,1777257039130,-463.94983286,0.00014506,2]
[421209469,1777257039139,-179.94025022,0.00014794,2]
[421209470,1777257039149,-2237.4946242,0.00014795,2]
[421209471,1777257039159,-179.9640072,0.00015009,2]
[421209472,1777257039169,-231.0,0.00015738,2]
[421209473,1777257039178,-463.94983286,0.00015854,2]
[421209474,1777257039188,-1000.0,0.00015905,2]
[421209475,1777257039198,-244.0,0.00015905,2]
[421209476,1777257039207,-1000.0,0.00016438,2]
[421209477,1777257039217,-463.94983286,0.00017203,2]
[421209478,1777257039227,-1000.0,0.00017495,2]
[421209479,1777257039236,-492.0,0.00017495,2]
[421209480,1777257039246,-258.0,0.00017738,2]
[421209481,1777257039256,-167.45779879,0.00017843,60]
[421209482,1777257039266,-184.71,0.00017856,2]
[421209483,1777257039276,-202.56,0.00017878,2]
[421209484,1777257039286,-192.88,0.00017968,2]
[421209485,1777257039295,-160.0,0.00018139,3]
[421209486,1777257039305,-163.54315146,0.00018196,2]
[421209487,1777257039314,-453.01421207,0.00018196,2]
[421209488,1777257039324,-537.6845,0.00018196,2]
[421209489,1777257039333,-162.380719,0.00018196,2]
[421209490,1777257039344,-537.6845,0.00018196,2]
[421209491,1777257039354,-171.78339638,0.00018196,2]
[421209492,1777257039363,-151.62664556,0.00018196,2]
[421209493,1777257039373,-2150.738,0.00018196,2]
[421209494,1777257039383,-557.5788265,0.00018251,2]
[421209495,1777257039393,-578.20924308,0.00018306,2]
[421209496,1777257039402,-599.60298507,0.00018361,2]
[421209497,1777257039412,-500.0,0.00018411,5]
[421209498,1777257039421,-93.1179747,0.00018416,2]
[421209526,1777257047293,-152.0,0.00016082,7]
[421209527,1777257047303,-152.0,0.00016098,7]
[421209528,1777257047313,-188.19243565,0.00017494,2]
[421209529,1777257100937,-1093.19074083,0.00013853,2]
[421209531,1777257357556,2547307.63343147,0.00025553,120]
[421209532,1777257372169,1669558.69254511,0.00024658,120]
[421209541,1777257932136,-2468.67039351,0.00010318,10]
[421209546,1777258158148,-1053.23409522,0.00010367,2]
[421209547,1777258158174,-565.0,0.00010367,2]
[421209548,1777258158199,-5000.0,0.00010472,2]
[421209549,1777258158225,-300.0,0.00010577,2]
[421209550,1777258158251,-3414.58751135,0.00010578,2]
[421209551,1777258158280,-150.0,0.00010686,2]
[421209552,1777258158306,-1200.0,0.00010957,2]
[421209553,1777258158334,-500.0,0.00010958,2]
[421209554,1777258158362,-420.0,0.00011628,2]
[421209555,1777258158394,-151.0,0.0001188,2]
[421209556,1777258158418,-2000.0,0.000119,2]
[421209557,1777258158442,-1540.23073776,0.000119,2]
[421209584,1777258232406,-300.0,0.0001178,2]
[421209586,1777258232418,-300.0,0.0001178,2]
[421209588,1777258232429,-139.60250072,0.0001178,2]
[421209817,1777258238521,-160.39749928,0.0001178,2]
[421209818,1777258238534,-1200.0,0.0001178,2]
[421209819,1777258238546,-5000.0,0.00011781,2]
[421209820,1777258238559,-586.0,0.00011781,2]
[421209821,1777258238571,-150.0,0.00011841,2]
[421209822,1777258238582,-459.76926224,0.000119,2]
[421209823,1777258238594,-2000.0,0.000119,2]
[421209824,1777258238605,-2000.0,0.000119,2]
[421209825,1777258238617,-2000.0,0.000119,2]
[421209826,1777258238629,-2000.0,0.000119,2]
[421209827,1777258238641,-1172.4709672,0.000119,2]
[421209828,1777258238653,-2744.26503625,0.000119,2]
[421209829,1777258238664,-185.36,0.00011975,2]
[421209830,1777258238676,-170.85,0.00012053,2]
[421209831,1777258238688,-194.18,0.00012067,2]
[421209832,1777258238699,-172.67,0.0001214,2]
[421209833,1777258238710,-300.0,0.00012935,2]
[421209834,1777258238721,-183.0,0.00012958,2]
[421209835,1777258238732,-1000.0,0.00013699,2]
[421209836,1777258238743,-177.0,0.00013841,2]
[421209837,1777258238755,-8906.80925917,0.00013853,2]
[421209838,1777258238766,-10000.0,0.0001393,2]
[421209839,1777258238778,-10000.0,0.00013953,2]
[421209840,1777258238789,-600.0,0.00014333,2]
[421209841,1777258238799,-155.3581524,0.00014561,2]
[421209842,1777258238810,-6136.1813353,0.00014743,2]
[421209843,1777258238821,-159.3605617,0.00014743,2]
[421209844,1777258238833,-2721.1010736,0.00014743,2]
[421209845,1777258238844,-720.0,0.00015766,2]
[421209846,1777258238855,-204.0,0.00015841,2]
[421209847,1777258238866,-6136.1813353,0.0001627,2]
[421209848,1777258238878,-864.0,0.00017343,2]
[421209849,1777258238888,-6136.1813353,0.00017796,2]
[421209850,1777258238900,-231.0,0.00017841,2]
[421209851,1777258238911,-537.6845,0.00017978,2]
[421209852,1777258238921,-162.380719,0.00017978,2]
[421209853,1777258238930,-537.6845,0.00017978,2]
[421209854,1777258238939,-2150.738,0.00017978,2]
[421209855,1777258238949,-557.5788265,0.00018033,2]
[421209856,1777258238958,-578.20924308,0.00018088,2]
[421209857,1777258238968,-599.60298507,0.00018143,2]
[421209858,1777258238977,-621.78829552,0.00018198,2]
[421209859,1777258238987,-644.79446246,0.00018253,2]
[421209860,1777258238996,-668.65185757,0.00018308,2]
[421209862,1777258239387,-693.3919763,0.00018363,2]
[421209863,1777258239408,-719.04747942,0.00018418,2]
[421209864,1777258239421,-253.21,0.00018431,2]
[421209865,1777258239430,-745.65223616,0.00018473,2]
[421209866,1777258239440,-2995.045443,0.00018479,2]
[421209867,1777258239450,-320.52,0.000185,7]
[421209868,1777258239460,-557.5788265,0.00018526,2]
[421209869,1777258239469,-2230.315306,0.00018526,2]
[421209870,1777258239479,-238.58537148,0.00018528,2]
[421209871,1777258239488,-600.0,0.00018603,2]
[421209872,1777258239498,-600.0,0.00018603,2]
[421209873,1777258239507,-600.0,0.00018603,2]
[421209874,1777258239516,-151.0,0.000187,2]
[421209875,1777258239526,-151.0,0.000188,2]
[421209876,1777258239536,-600.0,0.00018868,2]
[421209877,1777258239546,-607.26462026,0.00018868,2]
[421209878,1777258239555,-394.593,0.00018897,2]
[421209879,1777258239564,-187.299,0.00018897,2]
[421209880,1777258239575,-189.0,0.00019,2]
[421209881,1777258239585,-3473.0,0.00019,2]
[421209882,1777258239595,-151.0,0.00019,2]
[421209883,1777258239604,-226.0,0.00019,2]
[421209884,1777258239613,-497.0,0.00019,2]
[421209885,1777258239624,-578.20924308,0.00019074,2]
[421209886,1777258239633,-2312.83697232,0.00019074,2]
[421209887,1777258239643,-1000.0,0.00019077,2]
[421209888,1777258239652,-3208.97179199,0.0001911,2]
[421209889,1777258239661,-646.0,0.00019151,2]
[421209890,1777258239675,-2211.0,0.00019151,2]
[421209891,1777258239686,-1409.0,0.00019151,2]
[421209892,1777258239695,-153.162,0.00019151,2]
[421209893,1777258239705,-200.0,0.00019177,2]
[421209894,1777258239715,-500.0,0.00019178,2]
[421209895,1777258239724,-500.0,0.00019178,2]
[421209896,1777258239734,-670.67,0.00019178,2]
[421209897,1777258239743,-500.0,0.00019178,2]
[421209898,1777258239753,-151.316111,0.00019178,2]
[421209899,1777258239763,-694.64,0.00019178,2]
[421209900,1777258239773,-500.0,0.00019178,2]
[421209901,1777258239783,-500.0,0.00019178,2]
[421209902,1777258239792,-500.0,0.00019178,2]
[421209904,1777258239802,-428.906585,0.00019178,2]
[421209905,1777258239812,-428.906585,0.00019178,2]
[421209906,1777258239821,-428.906585,0.00019178,2]
[421209907,1777258239831,-428.906585,0.00019178,2]
[421209908,1777258239840,-428.906585,0.00019178,2]
[421209909,1777258239849,-428.906585,0.00019178,2]
[421209910,1777258239859,-428.906585,0.00019178,2]
[421209911,1777258239868,-428.906585,0.00019178,2]
[421209912,1777258239878,-428.906585,0.00019178,2]
[421209913,1777258239888,-415.568719,0.00019178,2]
[421209914,1777258239898,-428.906585,0.00019178,2]
[421209915,1777258239907,-415.568719,0.00019178,2]
[421209916,1777258239916,-428.906585,0.00019178,2]
[421209917,1777258239926,-664.53,0.00019178,2]
[421209918,1777258239935,-500.0,0.00019178,2]
[421209919,1777258239945,-415.568719,0.00019178,2]
[421209920,1777258239955,-428.906585,0.00019178,2]
[421209921,1777258239964,-428.906585,0.00019178,2]
[421209922,1777258239973,-415.568719,0.00019178,2]
[421209923,1777258239983,-151.0,0.00019178,2]
[421209924,1777258239992,-279.50657798,0.00019178,2]
[421209926,1777258240053,-136.06214102,0.00019178,2]
[421209927,1777258240063,-428.906585,0.00019178,2]
[421209928,1777258240073,-151.0,0.00019178,2]
[421209929,1777258240083,-415.568719,0.00019178,2]
[421209931,1777258240092,-428.906585,0.00019178,2]
[421209933,1777258240102,-415.568719,0.00019178,2]
[421209935,1777258240112,-151.0,0.00019178,2]
[421209937,1777258240122,-428.906585,0.00019178,2]
[421209939,1777258240131,-415.568719,0.00019178,2]
[421209940,1777258240141,-151.0,0.00019178,2]
[421209941,1777258240150,-428.906585,0.00019178,2]
[421209942,1777258240159,-415.568719,0.00019178,2]
[421209943,1777258240169,-151.0,0.00019178,2]
[421209944,1777258240179,-428.906585,0.00019178,2]
[421209945,1777258240188,-415.568719,0.00019178,2]
[421209946,1777258240198,-250.471571,0.00019178,2]
[421209947,1777258240207,-428.906585,0.00019178,2]
[421209948,1777258240216,-415.568719,0.00019178,2]
[421209949,1777258240224,-428.906579,0.00019178,2]
[421209950,1777258240234,-415.568719,0.00019178,2]
[421209951,1777258240243,-415.568719,0.00019178,2]
[421209952,1777258240252,-415.568719,0.00019178,2]
[421209953,1777258240261,-415.568719,0.00019178,2]
[421209954,1777258240271,-415.568719,0.00019178,2]
[421209955,1777258240280,-415.568719,0.00019178,2]
[421209956,1777258240289,-415.568719,0.00019178,2]
[421209957,1777258240299,-415.568719,0.00019178,2]
[421209958,1777258240308,-415.568719,0.00019178,2]
[421209959,1777258240318,-500.0,0.00019178,2]
[421209960,1777258240327,-500.0,0.00019178,2]
[421209961,1777258240336,-500.0,0.00019178,2]
[421209962,1777258240345,-151.0,0.00019178,2]
[421209963,1777258240355,-500.0,0.00019178,2]
[421209964,1777258240364,-500.0,0.00019178,2]
[421209965,1777258240373,-151.0,0.00019178,2]
[421209966,1777258240383,-500.0,0.00019178,2]
[421209967,1777258240392,-500.0,0.00019178,2]
[421209968,1777258240402,-500.0,0.00019178,2]
[421209969,1777258240411,-151.0,0.00019178,2]
[421209970,1777258240421,-500.0,0.00019178,2]
[421209971,1777258240430,-151.0,0.00019178,2]
[421209972,1777258240440,-500.0,0.00019178,2]
[421209973,1777258240449,-151.0,0.00019178,2]
[421209974,1777258240458,-500.0,0.00019178,2]
[421209975,1777258240468,-151.0,0.00019178,2]
[421209976,1777258240478,-500.0,0.00019178,2]
[421209977,1777258240487,-186.601036,0.00019178,2]
[421209978,1777258240497,-198.50182678,0.00019178,2]
[421209979,1777258240521,-301.49817322,0.00019178,2]
[421209980,1777258240530,-500.0,0.00019178,2]
[421209981,1777258240540,-500.0,0.00019178,2]
[421209982,1777258240549,-500.0,0.00019178,2]
[421209983,1777258240559,-500.0,0.00019178,2]
[421209984,1777258240568,-500.0,0.00019178,2]
[421209985,1777258240578,-500.0,0.00019178,2]
[421209986,1777258240587,-500.0,0.00019178,2]
[421209987,1777258240596,-500.0,0.00019178,2]
[421209988,1777258240605,-500.0,0.00019178,2]
[421209989,1777258240615,-500.0,0.00019178,2]
[421209991,1777258240624,-500.0,0.00019178,2]
[421209992,1777258240633,-500.0,0.00019178,2]
[421209993,1777258240642,-500.0,0.00019178,2]
[421209994,1777258240652,-500.0,0.00019178,2]
[421209995,1777258240661,-500.0,0.00019178,2]
[421209996,1777258240671,-1000.0,0.00019178,2]
[421209997,1777258240680,-2111.59,0.00019178,2]
[421209998,1777258240690,-854.02,0.00019178,2]
[421209999,1777258240699,-500.0,0.00019178,2]
[421210000,1777258240708,-500.0,0.00019178,2]
[421210001,1777258240719,-500.02,0.00019178,2]
[421210003,1777258240728,-500.0,0.00019178,2]
[421210005,1777258240738,-151.0,0.00019178,2]
[421210006,1777258240747,-151.0,0.00019178,2]
[421210007,1777258240756,-151.750003,0.00019178,2]
[421210008,1777258240765,-170.57092,0.00019178,2]
[421210009,1777258240774,-170.57092,0.00019178,2]
[421210010,1777258240783,-170.57092,0.00019178,2]
[421210011,1777258240792,-170.57092,0.00019178,2]
[421210012,1777258240802,-170.57092,0.00019178,2]
[421210013,1777258240811,-500.0,0.00019178,2]
[421210014,1777258240821,-170.57092,0.00019178,2]
[421210015,1777258240830,-170.57092,0.00019178,2]
[421210016,1777258240839,-170.57092,0.00019178,2]
[421210017,1777258240848,-170.57092,0.00019178,2]
[421210018,1777258240857,-170.57092,0.00019178,2]
[421210019,1777258240867,-170.57092,0.00019178,2]
[421210020,1777258240876,-170.57092,0.00019178,2]
[421210021,1777258240885,-170.57092,0.00019178,2]
[421210022,1777258240895,-170.57092,0.00019178,2]
[421210023,1777258240904,-170.57092,0.00019178,2]
[421210024,1777258240915,-170.57092,0.00019178,2]
[421210025,1777258240925,-170.57092,0.00019178,2]
[421210026,1777258240934,-170.57092,0.00019178,2]
[421210027,1777258240944,-170.57092,0.00019178,2]
[421210028,1777258240954,-170.570927,0.00019178,2]
[421210029,1777258240963,-513.35187818,0.00019178,2]
[421210030,1777258240972,-1267.33,0.00019178,2]
[421210031,1777258240981,-500.0,0.00019178,2]
[421210032,1777258240990,-500.0,0.00019178,2]
[421210033,1777258241000,-1036.47,0.00019178,2]
[421210034,1777258241009,-500.0,0.00019178,2]
[421210035,1777258241019,-1401.67,0.00019178,2]
[421210036,1777258241028,-500.0,0.00019178,2]
[421210037,1777258241038,-151.0,0.00019178,2]
[421210038,1777258241047,-151.0,0.00019178,2]
[421210039,1777258241056,-163.479407,0.00019178,2]
[421210040,1777258241067,-299.299202,0.00019178,2]
[421210041,1777258241077,-299.299202,0.00019178,2]
[421210042,1777258241086,-299.299202,0.00019178,2]
[421210043,1777258241095,-299.299202,0.00019178,2]
[421210044,1777258241105,-299.299202,0.00019178,2]
[421210045,1777258241114,-299.299202,0.00019178,2]
[421210046,1777258241123,-299.299202,0.00019178,2]
[421210047,1777258241132,-299.299202,0.00019178,2]
[421210048,1777258241142,-299.299202,0.00019178,2]
[421210049,1777258241151,-299.299202,0.00019178,2]
[421210050,1777258241161,-299.299202,0.00019178,2]
[421210051,1777258241170,-299.299202,0.00019178,2]
[421210052,1777258241179,-299.299202,0.00019178,2]
[421210053,1777258241189,-151.0,0.00019178,2]
[421210054,1777258241198,-299.299202,0.00019178,2]
[421210055,1777258241208,-151.0,0.00019178,2]
[421210056,1777258241217,-151.0,0.00019178,2]
[421210057,1777258241226,-299.299202,0.00019178,2]
[421210058,1777258241235,-151.0,0.00019178,2]
[421210059,1777258241244,-299.299202,0.00019178,2]
[421210060,1777258241254,-175.179105,0.00019178,2]
[421210061,1777258241264,-299.299202,0.00019178,2]
[421210062,1777258241274,-299.299202,0.00019178,2]
[421210063,1777258241283,-299.299202,0.00019178,2]
[421210064,1777258241293,-299.2992021,0.00019178,2]
[421210065,1777258241302,-360.524362,0.00019178,2]
[421210066,1777258241311,-360.524362,0.00019178,2]
[421210067,1777258241320,-360.524362,0.00019178,2]
[421210068,1777258241330,-360.524362,0.00019178,2]
[421210069,1777258241339,-360.524362,0.00019178,2]
[421210070,1777258241348,-360.524362,0.00019178,2]
[421210071,1777258241357,-360.524362,0.00019178,2]
[421210072,1777258241367,-360.524362,0.00019178,2]
[421210073,1777258241376,-1182.84,0.00019178,2]
[421210074,1777258241386,-360.524362,0.00019178,2]
[421210075,1777258241396,-962.02,0.00019178,2]
[421210076,1777258241406,-1099.57,0.00019178,2]
[421210077,1777258241415,-360.524362,0.00019178,2]
[421210078,1777258241425,-360.524362,0.00019178,2]
[421210079,1777258241435,-360.524362,0.00019178,2]
[421210080,1777258241444,-360.524362,0.00019178,2]
[421210081,1777258241454,-360.524362,0.00019178,2]
[421210082,1777258241464,-360.524362,0.00019178,2]
[421210083,1777258241474,-360.524362,0.00019178,2]
[421210084,1777258241484,-360.524362,0.00019178,2]
[421210085,1777258241494,-360.524362,0.00019178,2]
[421210086,1777258241503,-360.524362,0.00019178,2]
[421210087,1777258241513,-360.524372,0.00019178,2]
[421210088,1777258241523,-228.628242,0.00019178,2]
[421210089,1777258241532,-500.0,0.00019178,2]
[421210090,1777258241541,-1361.04,0.00019178,2]
[421210091,1777258241551,-833.6,0.00019178,2]
[421210092,1777258241560,-500.0,0.00019178,2]
[421210093,1777258241570,-1294.8,0.00019178,2]
[421210094,1777258241579,-893.0,0.00019178,2]
[421210095,1777258241589,-893.0,0.00019178,2]
[421210096,1777258241599,-893.0,0.00019178,2]
[421210097,1777258241608,-893.0,0.00019178,2]
[421210098,1777258241618,-893.0,0.00019178,2]
[421210099,1777258241628,-893.0,0.00019178,2]
[421210100,1777258241637,-893.0,0.00019178,2]
[421210101,1777258241647,-893.0,0.00019178,2]
[421210102,1777258241656,-893.0,0.00019178,2]
[421210103,1777258241666,-893.0,0.00019178,2]
[421210104,1777258241676,-893.0,0.00019178,2]
[421210105,1777258241686,-893.0,0.00019178,2]
[421210106,1777258241695,-893.0,0.00019178,2]
[421210107,1777258241705,-893.0,0.00019178,2]
[421210108,1777258241715,-893.0,0.00019178,2]
[421210109,1777258241724,-893.0,0.00019178,2]
[421210110,1777258241734,-893.0,0.00019178,2]
[421210111,1777258241743,-893.0,0.00019178,2]
[421210112,1777258241753,-1322.56,0.00019178,2]
[421210113,1777258241762,-893.0,0.00019178,2]
[421210114,1777258241772,-562.8,0.00019178,2]
[421210115,1777258241781,-182.80391039,0.00019178,2]
[421210116,1777258241791,-893.0,0.00019178,2]
[421210117,1777258241800,-893.0,0.00019178,2]
[421210118,1777258241810,-893.0,0.00019178,2]
[421210119,1777258241823,-151.0,0.00019178,2]
[421210120,1777258241832,-151.0,0.00019178,2]
[421210121,1777258241842,-893.0,0.00019178,2]
[421210122,1777258241851,-151.0,0.00019178,2]
[421210123,1777258241861,-500.0,0.00019178,2]
[421210124,1777258241870,-151.0,0.00019178,2]